bitfinex-derivatives/quotes_SOLF0:USTF0_20251018
["timestamp","ask_amount","ask_price","bid_price","bid_amount"]
[1760763000292,4.26622943,183.4,183.25,2.89]
[1760763000492,4.26622943,183.39,183.25,2.89]
[1760763000694,4.26622943,183.38,183.25,2.89]
[1760763000987,4.26622943,183.37,183.25,2.89]
[1760763001187,12.19004976,183.46,183.25,2.89]
[1760763001188,4.26579702,183.36,183.25,2.89]
[1760763001384,4.26579702,183.35,183.25,2.89]
[1760763001584,4.58534296,183.38,183.25,2.89]
[1760763001787,4.27043275,183.37,183.25,2.89]
[1760763001985,4.27043275,183.36,183.25,2.89]
[1760763002186,4.27043275,183.35,183.25,2.89]
[1760763002391,5.04513505,183.39,183.25,2.89]
[1760763002590,9.18096718,183.38,183.3,4.9082]
[1760763002795,4.27456718,183.37,183.31,2.89]
[1760763002994,5.04513505,183.41,183.31,2.89]
[1760763003190,4.27475615,183.4,183.31,2.89]
[1760763003387,4.27475615,183.39,183.31,2.89]
[1760763003586,4.27475615,183.38,183.31,2.89]
[1760763003785,4.27475615,183.37,183.31,2.89]
[1760763003988,4.27650667,183.4,183.31,2.89]
[1760763004193,4.27650667,183.39,183.31,2.89]
[1760763004395,4.59375704,183.42,183.31,2.89]
[1760763004597,4.27478563,183.41,183.31,2.89]
[1760763004799,4.27478563,183.4,183.31,2.89]
[1760763005093,4.27478563,183.39,183.31,2.89]
[1760763005299,4.59375704,183.42,183.31,2.89]
[1760763005504,4.27494117,183.41,183.33,2.86]
[1760763005797,4.27494117,183.4,183.33,2.86]
[1760763005996,4.27494117,183.39,183.35,4.9068]
[1760763006197,4.59375704,183.42,183.36,2.86]
[1760763006398,4.27509066,183.41,183.37,2.86]
[1760763006590,4.27509066,183.4,183.37,2.86]
[1760763006789,4.27509066,183.39,183.37,2.86]
[1760763006998,4.59375704,183.42,183.37,2.86]
[1760763007302,4.275297,183.41,183.37,2.86]
[1760763007499,4.275297,183.4,183.37,2.86]
[1760763007700,4.275297,183.39,183.37,2.86]
[1760763007896,4.59375704,183.42,183.37,2.86]
[1760763008096,4.27523785,183.41,183.37,2.86]
[1760763008295,4.27523785,183.4,183.37,2.86]
[1760763008497,4.27523785,183.39,183.37,2.86]
[1760763008695,4.27575992,183.38,183.37,2.86]
[1760763009799,4.27575992,183.38,183.35,4.9068]
[1760763010104,13.72333725,183.42,183.35,7.7668]
[1760763010295,4.27583147,183.41,183.35,7.7668]
[1760763010599,4.27583147,183.4,183.36,2.86]
[1760763010801,4.27583147,183.39,183.36,2.86]
[1760763011000,4.27583147,183.38,183.36,2.86]
[1760763011195,9.49915704,183.42,183.36,2.86]
[1760763011395,4.27558694,183.41,183.36,2.86]
[1760763011594,4.27558694,183.4,183.36,2.86]
[1760763011798,4.27558694,183.39,183.36,2.86]
[1760763011993,4.27558694,183.38,183.36,2.86]
[1760763012200,9.49915704,183.42,183.36,2.86]
[1760763012498,4.27545437,183.41,183.36,2.86]
[1760763012701,4.27545437,183.4,183.36,2.86]
[1760763012902,4.27545437,183.39,183.36,2.86]
[1760763013103,4.27545437,183.38,183.36,2.86]
[1760763013298,9.49915704,183.42,183.36,2.86]
[1760763013503,4.27535786,183.41,183.36,2.86]
[1760763013804,4.27535786,183.4,183.36,2.86]
[1760763014002,9.49915704,183.42,183.36,2.86]
[1760763014003,4.27535786,183.39,183.36,2.86]
[1760763014209,4.2754562,183.38,183.36,2.86]
[1760763014503,9.49915704,183.42,183.36,2.86]
[1760763014799,4.27527051,183.41,183.36,2.86]
[1760763015004,4.27527051,183.4,183.36,2.86]
[1760763015200,4.27527051,183.39,183.37,2.88]
[1760763015406,4.27527051,183.38,183.37,2.88]
[1760763030016,4.27527051,183.38,183.35,4.9068]
[1760763030215,5.580095,183.41,183.35,4.9068]
[1760763030216,4.27527051,183.37,183.35,7.7868]
[1760763030418,4.67498645,183.4,183.36,2.88]
[1760763030615,8.94888047,183.39,183.36,2.88]
[1760763030813,4.27389402,183.38,183.37,2.88]
[1760763032122,4.27389402,183.38,183.35,2.88]
[1760763032316,4.27389402,183.37,183.35,2.88]
[1760763032520,1.35221844,183.38,183.35,2.88]
[1760763032818,4.27122236,183.37,183.35,2.88]
[1760763033119,4.27122236,183.36,183.35,2.88]
[1760763034520,6.02720489,183.39,183.35,2.88]
[1760763034721,4.2728208,183.38,183.36,2.88]
[1760763034923,4.2728208,183.37,183.36,2.88]
[1760763037822,4.2728208,183.37,183.35,2.88]
[1760763038016,6.02720489,183.39,183.36,2.88]
[1760763038221,4.27119656,183.38,183.36,2.88]
[1760763038420,4.27119656,183.37,183.36,2.88]
[1760763053423,4.27119656,183.37,183.35,2.76]
[1760763053628,4.27119656,183.36,183.35,2.76]
[1760763058532,5.04513505,183.4,183.26,55.1187]
[1760763058533,5.04513505,183.41,183.36,4.9068]
[1760763058727,8.99214047,183.4,183.36,4.9068]
[1760763058927,4.26904339,183.39,183.38,2.76]
[1760763060634,6.39735349,183.45,183.38,2.76]
[1760763060831,8.9621848,183.44,183.38,2.76]
[1760763061135,8.9621848,183.44,183.34,1.35221844]
[1760763061136,8.9621848,183.43,183.35,2.76]
[1760763061434,1.35221844,183.45,183.39,2.76]
[1760763061435,4.23940775,183.42,183.39,2.76]
[1760763061736,4.23940775,183.41,183.39,2.76]
[1760763061932,5.04513505,183.44,183.39,2.76]
[1760763061933,4.23940775,183.4,183.39,2.76]
[1760763062637,4.23940775,183.4,183.37,2.76]
[1760763062833,4.2355049,183.39,183.38,2.76]
[1760763063435,4.2355049,183.39,183.36,7.6667]
[1760763063630,4.2355049,183.38,183.36,7.6667]
[1760763063938,6.39735349,183.42,183.36,7.7967]
[1760763064138,8.95089205,183.41,183.36,7.7967]
[1760763064338,8.95089205,183.4,183.36,7.7967]
[1760763064540,4.23372823,183.39,183.36,7.7967]
[1760763064737,4.23372823,183.38,183.36,7.7967]
[1760763064937,6.39735349,183.42,183.36,7.7967]
[1760763064938,4.7176042,183.4,183.36,7.7967]
[1760763065240,4.23432538,183.39,183.36,7.7967]
[1760763065542,4.23432538,183.38,183.36,7.7967]
[1760763065840,4.71780624,183.4,183.36,7.7967]
[1760763066027,4.23430259,183.39,183.36,7.7967]
[1760763066229,4.23430259,183.38,183.36,7.7967]
[1760763066440,4.7178095,183.4,183.36,7.7967]
[1760763066735,4.23427667,183.39,183.36,7.7967]
[1760763066936,4.23427667,183.38,183.36,7.7967]
[1760763067132,4.7177806,183.4,183.36,7.7967]
[1760763067326,4.2339915,183.39,183.36,7.7967]
[1760763067532,4.2339915,183.38,183.37,2.89]
[1760763074851,4.69256028,183.41,183.35,2.65]
[1760763075052,4.23281771,183.4,183.35,2.65]
[1760763075352,4.23281771,183.39,183.34,4.9072]
[1760763075653,4.69256028,183.42,183.35,2.65]
[1760763075854,8.92503914,183.41,183.35,2.65]
[1760763076152,4.23247886,183.4,183.34,4.9072]
[1760763076354,4.23247886,183.39,183.35,2.65]
[1760763076648,4.23247886,183.38,183.34,4.9072]
[1760763076852,4.23247886,183.37,183.35,2.65]
[1760763077052,4.68906226,183.4,183.34,4.9072]
[1760763077248,8.91860281,183.39,183.35,2.65]
[1760763077456,4.22954055,183.38,183.35,2.65]
[1760763077655,4.22954055,183.37,183.35,2.65]
[1760763077851,4.68906226,183.4,183.35,2.65]
[1760763078155,8.91860298,183.39,183.36,2.65]
[1760763078358,4.22954072,183.38,183.36,2.65]
[1760763078552,4.22954072,183.37,183.36,2.65]
[1760763079555,4.22954072,183.37,183.34,4.9072]
[1760763079556,4.68906226,183.41,183.35,2.65]
[1760763079759,4.22986669,183.4,183.35,2.65]
[1760763080053,4.22986669,183.39,183.35,2.65]
[1760763080253,4.22986669,183.38,183.34,4.9072]
[1760763080456,4.68907294,183.41,183.35,2.65]
[1760763080647,4.2298467,183.4,183.35,2.65]
[1760763080848,4.2298467,183.39,183.35,2.65]
[1760763081049,4.2298467,183.38,183.35,2.65]
[1760763081256,4.68862423,183.41,183.35,2.65]
[1760763081551,4.22943049,183.4,183.35,2.65]
[1760763081857,4.22943049,183.39,183.35,2.65]
[1760763082056,4.22943049,183.38,183.35,2.65]
[1760763082351,4.68837889,183.41,183.35,2.65]
[1760763082555,4.22941829,183.4,183.35,2.65]
[1760763082855,4.22941829,183.39,183.35,2.65]
[1760763083051,9.03909105,183.42,183.35,2.65]
[1760763083052,4.22941829,183.38,183.35,2.65]
[1760763083251,4.9054,183.42,183.35,2.65]
[1760763083252,4.68848785,183.41,183.35,2.65]
[1760763083457,4.22931896,183.4,183.35,2.65]
[1760763083651,4.22931896,183.39,183.35,2.65]
[1760763083957,4.22931896,183.38,183.35,2.65]
[1760763084151,4.68837532,183.41,183.35,2.65]
[1760763084359,4.22908124,183.4,183.35,2.65]
[1760763084558,4.22908124,183.39,183.35,2.65]
[1760763084854,4.22908124,183.38,183.35,2.65]
[1760763085158,4.68814901,183.41,183.35,2.65]
[1760763085358,4.22898712,183.4,183.35,2.65]
[1760763085657,4.22898712,183.39,183.35,2.65]
[1760763085857,4.22898712,183.38,183.35,2.65]
[1760763086062,4.68816848,183.41,183.35,2.65]
[1760763086257,4.22900931,183.4,183.35,2.65]
[1760763086458,4.22900931,183.39,183.35,2.65]
[1760763086658,4.22900931,183.38,183.35,2.65]
[1760763086860,4.68843054,183.41,183.35,2.65]
[1760763087059,4.22072565,183.4,183.35,2.65]
[1760763087357,4.22072565,183.39,183.35,2.65]
[1760763087558,4.22072565,183.38,183.35,2.65]
[1760763087762,4.68846646,183.41,183.35,2.65]
[1760763087950,4.22075807,183.4,183.35,2.65]
[1760763088151,4.22075807,183.39,183.35,2.65]
[1760763088462,4.22075807,183.38,183.35,2.65]
[1760763088658,4.68864695,183.41,183.35,2.65]
[1760763088861,4.22126056,183.4,183.35,2.65]
[1760763089060,4.22126056,183.39,183.35,2.65]
[1760763089257,4.22126056,183.38,183.35,2.65]
[1760763089563,4.22067532,183.37,183.35,2.65]
[1760763089762,4.13385988,183.41,183.35,2.65]
[1760763089964,8.90956143,183.4,183.35,2.65]
[1760763090155,4.2208337,183.39,183.34,4.9072]
[1760763090355,4.2208337,183.38,183.35,2.65]
[1760763090559,4.13385988,183.41,183.35,2.65]
[1760763090560,4.2208337,183.37,183.35,2.65]
[1760763090761,4.68878904,183.4,183.34,4.9072]
[1760763090958,4.22141159,183.39,183.34,4.9072]
[1760763091264,4.22141159,183.38,183.34,4.9072]
[1760763091564,4.22141159,183.37,183.34,4.9072]
[1760763091755,4.69023592,183.4,183.35,2.65]
[1760763091960,4.2221942,183.39,183.34,4.9072]
[1760763092161,4.2221942,183.38,183.35,2.65]
[1760763092362,4.2221942,183.37,183.35,2.65]
[1760763092565,4.69030073,183.4,183.35,2.65]
[1760763092865,4.22225727,183.39,183.34,4.9072]
[1760763093060,4.22225727,183.38,183.35,2.65]
[1760763093256,4.22225727,183.37,183.34,4.9072]
[1760763093456,4.69060505,183.4,183.35,2.65]
[1760763093760,8.91298149,183.39,183.35,2.65]
[1760763094059,14.08516256,183.41,183.35,2.65]
[1760763094060,4.22253164,183.38,183.35,2.65]
[1760763094259,4.22253164,183.37,183.35,2.65]
[1760763094463,4.69044985,183.4,183.35,2.65]
[1760763094664,8.91280414,183.39,183.35,2.65]
[1760763094864,4.22235429,183.38,183.35,2.65]
[1760763095064,4.22235429,183.37,183.35,2.65]
[1760763095264,4.69044985,183.4,183.33,2.65]
[1760763095466,8.91280734,183.39,183.33,2.65]
[1760763095664,4.22235749,183.38,183.32,4.9078]
[1760763095862,4.22235749,183.37,183.33,2.65]
[1760763096063,4.69044985,183.4,183.33,2.65]
[1760763096267,8.91281659,183.39,183.33,2.65]
[1760763096471,4.22236674,183.38,183.32,4.9078]
[1760763096767,4.22236674,183.37,183.33,7.5574]
[1760763097068,4.69044985,183.4,183.33,7.5574]
[1760763097269,8.91282274,183.39,183.33,7.5574]
[1760763097568,4.22237289,183.38,183.34,2.65]
[1760763097769,4.22237289,183.37,183.34,2.65]
[1760763097974,4.69044985,183.4,183.33,7.5574]
[1760763098173,8.91281428,183.39,183.33,7.5574]
[1760763098373,4.22236443,183.38,183.34,2.65]
[1760763098568,4.22236443,183.37,183.34,2.65]
[1760763098873,9.95073505,183.41,183.34,2.65]
[1760763099073,8.94051754,183.4,183.34,2.65]
[1760763099271,8.94051754,183.39,183.35,2.65]
[1760763099470,4.22236512,183.38,183.35,2.65]
[1760763099774,4.22236512,183.37,183.33,4.9074]
[1760763099975,4.71815805,183.39,183.33,4.9074]
[1760763100276,4.22236725,183.38,183.34,4.9071]
[1760763100476,4.905,183.43,183.34,4.9071]
[1760763100477,4.22236725,183.37,183.34,4.9071]
[1760763100675,9.19045782,183.42,183.34,4.9071]
[1760763100676,4.71839465,183.39,183.34,4.9071]
[1760763100875,4.22254245,183.38,183.35,2.68]
[1760763101081,4.22254245,183.37,183.35,2.68]
[1760763101380,4.71839465,183.4,183.35,2.68]
[1760763101575,8.94099845,183.39,183.35,2.68]
[1760763101778,4.2226038,183.38,183.34,4.9071]
[1760763102080,4.71839465,183.4,183.35,2.68]
[1760763102279,4.22266304,183.39,183.34,4.9071]
[1760763102579,4.22266304,183.38,183.34,4.9071]
[1760763102776,4.71838425,183.4,183.35,2.68]
[1760763102972,4.2228335,183.39,183.34,4.9071]
[1760763103177,6.68067299,183.44,183.36,2.68]
[1760763103178,4.71860964,183.41,183.36,2.68]
[1760763103378,4.22330106,183.4,183.36,2.68]
[1760763103676,4.14604529,183.43,183.36,7.5866]
[1760763103875,8.94195763,183.42,183.38,2.68]
[1760763104076,8.94180157,183.41,183.38,2.68]
[1760763104381,4.2232983,183.4,183.38,2.68]
[1760763104581,4.2232983,183.39,183.38,2.68]
[1760763108490,4.2232983,183.39,183.27,2.68]
[1760763108690,4.2232983,183.38,183.27,2.68]
[1760763108889,4.2232983,183.37,183.27,2.68]
[1760763109089,4.72550734,183.39,183.34,4.9072]
[1760763109286,4.23144258,183.38,183.35,2.68]
[1760763109480,5.04513505,183.43,183.35,2.68]
[1760763109789,8.96174747,183.42,183.35,2.68]
[1760763109985,8.96174747,183.41,183.35,2.68]
[1760763110187,4.23259115,183.4,183.35,2.68]
[1760763110386,4.23259115,183.39,183.35,2.68]
[1760763110690,4.72981012,183.41,183.35,2.68]
[1760763110891,4.23267775,183.4,183.35,2.68]
[1760763111091,4.23267775,183.39,183.36,4.9066]
[1760763111287,4.72972726,183.41,183.36,4.9066]
[1760763111488,4.23402386,183.4,183.37,2.68]
[1760763111688,4.23402386,183.39,183.36,4.9066]
[1760763111885,4.73077951,183.41,183.37,2.68]
[1760763112186,4.23478605,183.4,183.38,2.68]
[1760763112390,4.73180658,183.42,183.38,2.68]
[1760763112581,4.23506489,183.41,183.38,2.68]
[1760763112784,4.23506489,183.4,183.38,2.68]
[1760763112987,4.73173055,183.43,183.38,2.68]
[1760763112988,4.73173055,183.42,183.38,2.68]
[1760763113191,4.23547139,183.41,183.38,2.68]
[1760763113382,4.23547139,183.4,183.38,2.68]
[1760763113587,4.73211819,183.42,183.38,2.68]
[1760763113785,4.22466295,183.41,183.38,2.68]
[1760763113989,4.22466295,183.4,183.39,2.68]
[1760763114592,4.7335391,183.44,183.38,4.9061]
[1760763114894,8.96023445,183.43,183.39,2.68]
[1760763115095,4.22669535,183.42,183.39,2.68]
[1760763115396,4.22669535,183.41,183.39,2.68]
[1760763115587,4.73454431,183.43,183.38,4.9061]
[1760763115796,4.22684703,183.42,183.38,4.9061]
[1760763115995,4.22684703,183.41,183.39,2.68]
[1760763116195,4.73400858,183.43,183.39,2.68]
[1760763116495,4.22674487,183.42,183.38,4.9061]
[1760763116691,4.22674487,183.41,183.38,4.9061]
[1760763116897,4.73381061,183.43,183.38,4.9061]
[1760763117092,4.22283287,183.42,183.39,2.68]
[1760763117396,4.22283287,183.41,183.38,4.9061]
[1760763117692,4.73381061,183.43,183.39,4.9058]
[1760763117899,4.22247909,183.42,183.4,2.68]
[1760763118201,9.94933505,183.46,183.4,2.68]
[1760763118501,8.95316467,183.45,183.4,2.68]
[1760763118697,8.95316467,183.44,183.41,2.68]
[1760763119005,4.22127735,183.43,183.41,2.68]
[1760763119306,8.88993254,183.47,183.41,4.9053]
[1760763119508,8.95157786,183.46,183.42,2.68]
[1760763119799,4.21969054,183.45,183.41,4.9053]
[1760763119995,5.04513505,183.48,183.41,4.9053]
[1760763119996,4.21969054,183.44,183.42,2.68]
[1760763120198,4.72967791,183.46,183.41,4.9053]
[1760763120395,4.22020289,183.45,183.42,2.68]
[1760763120599,4.22020289,183.44,183.41,4.9053]
[1760763120800,7.15864349,183.49,183.42,4.905]
[1760763121104,8.95112575,183.48,183.43,2.68]
[1760763121300,8.95112575,183.47,183.43,2.68]
[1760763121502,4.22055097,183.46,183.43,2.68]
[1760763121702,4.22055097,183.45,183.43,2.68]
[1760763121904,4.73057478,183.48,183.43,2.68]
[1760763122106,8.94949962,183.47,183.44,2.68]
[1760763122301,4.21892484,183.46,183.42,4.905]
[1760763122502,4.73057478,183.48,183.42,4.905]
[1760763122697,4.21755282,183.47,183.43,2.68]
[1760763122905,4.21755282,183.46,183.45,2.68]
[1760763123504,4.21755282,183.48,183.44,4.9047]
[1760763123708,8.89238267,183.51,183.45,4.9042]
[1760763123904,4.21058334,183.5,183.45,4.9042]
[1760763124105,4.21058334,183.49,183.36,12.4932]
[1760763124311,4.21058334,183.5,183.37,2.68]
[1760763124511,6.84408322,183.53,183.37,2.68]
[1760763124814,4.20864282,183.52,183.46,4.9039]
[1760763125112,4.20864282,183.51,183.46,4.9039]
[1760763125313,7.01550844,183.54,183.47,2.86]
[1760763125314,11.74608322,183.54,183.47,2.86]
[1760763125608,4.20507646,183.53,183.47,2.86]
[1760763125816,4.20507646,183.52,183.48,2.86]
[1760763126014,2.11350844,183.54,183.48,2.86]
[1760763126215,4.20324094,183.53,183.49,2.86]
[1760763126416,4.20324094,183.53,183.39,9.812]
[1760763126614,7.15864349,183.57,183.39,9.812]
[1760763126615,6.31674938,183.54,183.4,2.86]
[1760763126812,2.11350844,183.48,183.4,2.86]
[1760763127016,2.11350844,183.45,183.3,2.86]
[1760763127212,2.11350844,183.45,183.31,2.86]
[1760763127412,1.35233419,183.41,183.31,2.86]
[1760763129021,1.35233419,183.41,183.37,4.9063]
[1760763129218,1.35233419,183.41,183.39,2.86]
[1760763130325,1.35233419,183.41,183.38,2.86]
[1760763130623,1.35233419,183.41,183.36,2.86]
[1760763130822,1.35233419,183.41,183.37,2.86]
[1760763131124,1.35233419,183.41,183.35,4.9071]
[1760763131420,1.35233419,183.41,183.36,4.9066]
[1760763131819,1.35233419,183.41,183.37,2.64]
[1760763137723,1.35233419,183.38,183.34,2.64]
[1760763137924,1.35233419,183.38,183.33,4.9074]
[1760763137925,1.35233419,183.38,183.35,2.64]
[1760763142435,1.35233419,183.38,183.33,4.9074]
[1760763142436,1.35233419,183.38,183.34,2.64]
[1760763142838,1.35233419,183.38,183.33,4.9074]
[1760763143139,1.35233419,183.38,183.34,2.64]
[1760763143931,1.35233419,183.38,183.35,2.64]
[1760763144132,1.35233419,183.38,183.33,4.9074]
[1760763144333,1.35233419,183.38,183.34,2.64]
[1760763144533,1.35233419,183.38,183.33,4.9074]
[1760763144732,1.35233419,183.38,183.35,2.64]
[1760763144935,1.35233419,183.38,183.34,2.64]
[1760763145330,1.35233419,183.38,183.33,4.9074]
[1760763145535,1.35233419,183.38,183.35,2.64]
[1760763145734,1.35233419,183.38,183.34,2.64]
[1760763147347,1.35233419,183.38,183.33,4.9074]
[1760763147648,1.35233419,183.38,183.34,2.64]
[1760763147847,1.35233419,183.38,183.35,2.64]
[1760763148146,1.35233419,183.38,183.34,2.64]
[1760763148349,1.35233419,183.38,183.33,4.9074]
[1760763148741,1.35233419,183.38,183.34,2.64]
[1760763149248,1.35233419,183.38,183.33,4.9074]
[1760763149441,1.35233419,183.38,183.35,2.64]
[1760763149938,4.20020085,183.4,183.33,4.9074]
[1760763150144,4.20020085,183.4,183.34,2.64]
[1760763151950,1.35233419,183.41,183.34,2.64]
[1760763152148,4.20702667,183.4,183.34,2.64]
[1760763154853,6.25803419,183.41,183.34,2.64]
[1760763155050,4.20702667,183.4,183.34,2.64]
[1760763155448,6.25803419,183.41,183.34,2.64]
[1760763155644,10.46506086,183.41,183.34,2.64]
[1760763155854,4.20702667,183.4,183.34,2.64]
[1760763156054,6.25803419,183.41,183.34,2.64]
[1760763156351,1.35233419,183.38,183.31,7.5481]
[1760763156750,4.9068,183.37,183.31,2.64]
[1760763157152,1.35233419,183.38,183.31,2.64]
[1760763158152,6.25873419,183.38,183.31,2.64]
[1760763161460,10.46069164,183.38,183.31,2.64]
[1760763161649,6.25873419,183.38,183.31,2.64]
[1760763163956,4.9059,183.4,183.32,2.78]
[1760763164749,9.1062286,183.4,183.32,2.78]
[1760763164955,4.9059,183.4,183.32,4.9077]
[1760763165155,4.9059,183.4,183.33,2.78]
[1760763165459,1.35233419,183.38,183.34,2.78]
[1760763166861,1.35233419,183.38,183.33,2.78]
[1760763167464,1.35233419,183.38,183.34,2.78]
[1760763167659,1.35233419,183.38,183.33,2.78]
[1760763167854,1.35233419,183.38,183.34,2.78]
[1760763168058,1.35233419,183.38,183.32,4.9077]
[1760763168255,1.35233419,183.38,183.33,2.78]
[1760763169656,5.55651301,183.38,183.33,2.78]
[1760763169861,1.35233419,183.38,183.33,2.78]
[1760763170067,1.35233419,183.38,183.34,2.78]
[1760763170367,5.55651301,183.38,183.33,2.78]
[1760763170562,5.55651301,183.38,183.32,4.9077]
[1760763170769,5.55651301,183.38,183.33,2.78]
[1760763171068,1.35233419,183.38,183.33,2.78]
[1760763171767,1.35233419,183.38,183.34,2.78]
[1760763171965,1.35233419,183.38,183.33,2.78]
[1760763172166,4.21079453,183.37,183.32,4.9077]
[1760763172362,1.35233419,183.38,183.33,2.78]
[1760763172662,4.21099514,183.37,183.34,2.78]
[1760763172866,1.35233419,183.38,183.34,2.78]
[1760763173067,4.21079033,183.37,183.34,2.78]
[1760763173267,1.35233419,183.38,183.34,2.78]
[1760763173469,4.21150748,183.37,183.33,2.78]
[1760763173664,1.35233419,183.38,183.34,2.78]
[1760763173969,4.21145556,183.37,183.33,2.78]
[1760763174170,1.35233419,183.38,183.33,2.78]
[1760763174370,4.21227907,183.37,183.33,2.78]
[1760763174572,1.35233419,183.38,183.32,4.9077]
[1760763174758,4.21227907,183.37,183.32,4.9077]
[1760763174965,6.25893419,183.38,183.34,2.78]
[1760763175166,4.21265651,183.37,183.34,2.78]
[1760763175364,4.21265651,183.36,183.34,2.78]
[1760763175569,6.25893419,183.38,183.34,2.78]
[1760763175771,4.21317799,183.37,183.34,2.78]
[1760763175971,4.21317799,183.36,183.34,2.78]
[1760763176170,6.25893419,183.38,183.34,2.78]
[1760763176367,4.2135131,183.37,183.24,2.78]
[1760763176568,4.2135131,183.36,183.24,2.78]
[1760763176763,1.35233419,183.37,183.24,2.78]
[1760763176969,4.21369601,183.36,183.25,2.78]
[1760763177271,1.35233419,183.37,183.25,2.78]
[1760763177472,4.22245047,183.36,183.25,2.78]
[1760763177770,1.35233419,183.37,183.26,2.78]
[1760763177968,4.22244845,183.36,183.3,4.9082]
[1760763178172,1.35233419,183.37,183.31,2.78]
[1760763178369,4.2233925,183.36,183.3,4.9082]
[1760763178571,1.35233419,183.37,183.31,2.78]
[1760763178773,4.22343963,183.36,183.31,2.78]
[1760763178974,1.35233419,183.37,183.31,2.78]
[1760763179175,4.22344029,183.36,183.3,4.9082]
[1760763179376,1.35233419,183.37,183.31,2.78]
[1760763179573,4.22400561,183.36,183.31,2.78]
[1760763179872,1.35233419,183.37,183.31,2.78]
[1760763180070,4.22400414,183.36,183.31,2.78]
[1760763180272,4.22400414,183.35,183.31,2.78]
[1760763180468,1.35233419,183.37,183.31,2.78]
[1760763180669,4.22449711,183.36,183.31,2.78]
[1760763180976,4.22449711,183.35,183.31,2.78]
[1760763181175,1.35233419,183.37,183.31,2.78]
[1760763181376,4.22489432,183.36,183.31,2.78]
[1760763181574,4.22489432,183.35,183.31,2.78]
[1760763181776,1.35233419,183.37,183.31,2.78]
[1760763181970,4.22489432,183.36,183.31,2.78]
[1760763182171,4.22489432,183.35,183.31,2.78]
[1760763182369,6.04225711,183.37,183.31,2.78]
[1760763182575,4.22516122,183.36,183.31,2.78]
[1760763182775,4.22516122,183.35,183.3,4.9082]
[1760763182975,1.35233419,183.37,183.31,2.78]
[1760763183174,4.22475336,183.36,183.31,2.78]
[1760763183478,4.22475336,183.35,183.31,2.78]
[1760763183673,6.25823419,183.4,183.27,2.78]
[1760763183867,8.91508745,183.39,183.27,2.78]
[1760763184070,4.22515895,183.38,183.27,2.78]
[1760763184271,4.22515895,183.37,183.27,2.78]
[1760763184475,4.68986871,183.39,183.27,2.78]
[1760763184677,4.22523503,183.38,183.27,2.78]
[1760763184876,4.22523503,183.37,183.27,2.78]
[1760763185072,9.59606871,183.39,183.27,2.78]
[1760763185272,4.22519164,183.38,183.27,2.78]
[1760763185570,4.22519164,183.37,183.27,2.78]
[1760763185882,4.9062,183.39,183.27,2.78]
[1760763186175,4.22527864,183.38,183.32,2.72]
[1760763186376,4.22527864,183.37,183.31,4.9079]
[1760763186675,4.22527864,183.36,183.33,2.72]
[1760763186872,4.69009059,183.38,183.32,2.72]
[1760763187064,4.22510845,183.37,183.32,2.72]
[1760763187267,4.22510845,183.36,183.31,4.9079]
[1760763187468,4.69009059,183.38,183.32,2.72]
[1760763187677,4.22521587,183.37,183.32,2.72]
[1760763187973,4.22521587,183.36,183.32,2.72]
[1760763188176,4.69009059,183.38,183.32,2.72]
[1760763188375,4.22533104,183.37,183.32,2.72]
[1760763188575,4.22533104,183.36,183.32,2.72]
[1760763188775,4.9062,183.39,183.32,2.72]
[1760763188970,4.2253757,183.38,183.32,2.72]
[1760763189176,4.2253757,183.37,183.32,2.72]
[1760763189475,9.59644282,183.39,183.32,2.72]
[1760763189676,4.22548845,183.38,183.32,2.72]
[1760763189877,4.22548845,183.37,183.32,2.72]
[1760763190079,4.9062,183.39,183.32,2.72]